Cogmind - Beta 12 @@@ ROGUE MODE // 2024.02.03 @ 17:24:45 Player: g-man Result: Destroyed by Y-45 Defender with Heavy Assault Rifle Performance ------------- Evolutions (1) 500 Regions Visited (3) 600 Robots Destroyed (58) 290 Value Destroyed (1607) 1607 Prototype IDs (3) 60 Alien Tech Used (0) 0 Bonus (8) 8 TOTAL SCORE: 3065 Bonus ------- High Alert Combat Kills 8 Cogmind --------- Core Integrity 0/400 Matter 266/300 Energy 189/250 System Corruption 0% Temperature Cool (9) Movement Walking (190) Ox1 Location -9/Storage Parts ------- > --- POWER (1) -------- Ion Engine > --- PROPULSION (3) --- Aluminum Leg Aluminum Leg Aluminum Leg > --- UTILITY (3) ------ Large Storage Unit Signal Interpreter Light Regenerative Plating > --- WEAPON (2) ------- Improved Assault Rifle Improved Assault Rifle > --- INVENTORY (15) --- Aluminum Leg Disposable Heat Sink Medium Storage Unit Medium Battery (150) Weight Redist. System Terrain Scanner Terrain Scan Processor Improved Assault Rifle Improved Assault Rifle Grenade Launcher Hammer Peak State ------------ > --- POWER ------------ Improved Ion Engine > --- PROPULSION ------- Aluminum Leg Aluminum Leg Aluminum Leg > --- UTILITY ---------- Large Storage Unit Signal Interpreter Light Regenerative Plating > --- WEAPON ----------- Improved Assault Rifle Improved Assault Rifle > --- INVENTORY -------- Aluminum Leg Aluminum Leg Disposable Heat Sink Medium Storage Unit Medium Battery Weight Redist. System Terrain Scanner Terrain Scan Processor Improved Assault Rifle Grenade Launcher Grenade Launcher Hammer [Rating: 20] Favorites ----------- Power Ion Engine Engine Ion Engine Propulsion Aluminum Leg Leg Aluminum Leg Utility Large Storage Unit Device Sensor Array Storage Large Storage Unit Processor Signal Interpreter Protection Light Regenerative Plating Weapon Improved Assault Rifle Energy Gun Small Laser Energy Cannon Particle Cannon Ballistic Gun Improved Assault Rifle Launcher Grenade Launcher Impact Weapon Hammer Build | -11 -10 -9 -9 ------- Run | Jun Mat Mat Sto Slots Evolved 2 | . . 2 . Power . | . . . . Propulsion 1 | . . 1 . Utility 1 | . . 1 . Weapon . | . . . . Parts Attached 87 | 6 16 16 49 Power 7 | 1 3 . 3 Engine 7 | 1 3 . 3 Core . | . . . . Reactor . | . . . . Propulsion 19 | 2 2 6 9 Treads . | . . . . Leg 19 | 2 2 6 9 Wheel . | . . . . Hover . | . . . . Flight . | . . . . Utility 16 | 1 5 2 8 Device 10 | . 2 2 6 Storage 3 | 1 2 . . Processor 1 | . 1 . . Hackware . | . . . . Protection 2 | . . . 2 Artifact . | . . . . Weapon 45 | 2 6 8 29 Energy Gun 5 | 1 3 . 1 Energy Cannon 3 | . . . 3 Ballistic Gun 18 | 1 1 3 13 Ballistic Cannon . | . . . . Launcher 12 | . 2 3 7 Special Weapon . | . . . . Impact Weapon 7 | . . 2 5 Slashing Weapon . | . . . . Piercing Weapon . | . . . . Special Melee Weapon . | . . . . Unidentified Prototypes 2 | . . 1 1 Parts Lost 11 | . . 1 10 Power 2 | . . . 2 Propulsion 6 | . . 1 5 Utility 1 | . . . 1 Weapon 2 | . . . 2 Highest Loss Streak 7 | . . 1 7 To Critical Strikes . | . . . . Average Slot Usage (%) 95 | . 96 99 93 Engine 11 | . 14 11 9 Leg 30 | . 28 32 31 Device 8 | . 6 10 8 Storage 12 | . 14 11 11 Processor 8 | . 5 11 11 Energy Gun 5 | . 13 2 . Ballistic Gun 13 | . 13 16 11 Launcher 1 | . . 1 2 Impact Weapon 1 | . . 2 2 Naked Turns . | . . . . Heaviest Build 37 | 10 31 32 37 Greatest Support 30 | 20 20 30 30 Greatest Overweight (x) 3 | 3 1 1 2 Average Overweight (x) . | . . . . Largest Inventory Capacity 15 | 8 15 15 15 Average Capacity 14 | 7 13 15 15 Most Carried 15 | 2 15 15 15 Average Carried 12 | 1 11 14 13 Final Capacity 15 | 8 15 15 15 Final Carried 15 | 2 15 15 11 Class Distribution -------------------- 59% | Scavenger-Mutant 40% | Mutant Dominant Class ---------------- Mutant | -10/Materials Scavenger-Mutant | -9/Materials Scavenger-Mutant | -9/Storage Resources | -11 -10 -9 -9 ----------- Run | Jun Mat Mat Sto Matter Collected 1588 | 224 229 371 764 Remotely . | . . . . Salvage Created 2041 | . 452 791 798 Parts 120 | . 27 40 53 Haulers Intercepted 7 | . 2 3 2 Recyclers Shooed 2 | . 1 1 . Parts Field Recycled . | . . . . Retrieved Matter . | . . . . Parts Self-Destructed . | . . . . Prevented . | . . . . Kills | -11 -10 -9 -9 ------- Run | Jun Mat Mat Sto Combat Hostiles Destroyed 40 | . 10 14 16 Melee 2 | . . 2 . Guns 22 | . 8 7 7 Cannons 1 | . . . 1 AOE 13 | . 2 4 7 Classes Destroyed 9 | . 4 4 1 Worker 1 | . . 1 . Builder 3 | . . . 3 Hauler 7 | . 2 3 2 Recycler 2 | . . 1 1 Operator 2 | . . 1 1 Watcher 3 | . 1 1 1 Swarmer 2 | . 2 . . Grunt 30 | . 8 12 10 Sentry 8 | . . 2 6 Best Kill Streak 6 | . 3 6 6 Combat Bots Only 5 | . 2 5 4 Max Kills in Single Turn 3 | . 2 2 3 Gunslinging . | . . . . Exploded 2 | . 2 2 2 Melee 1 | . . 1 . Uniques/NPCs Destroyed . | . . . . Combat | -11 -10 -9 -9 -------- Run | Jun Mat Mat Sto Damage Taken 2533 | . 457 426 1650 Core 468 | . 67 54 347 Absorbed by Shields . | . . . . Regen/Repaired (Parts) 58 | . . . 58 Core Remaining (%) 86 | 100 73 . . Volleys Fired 116 | . 45 26 45 Largest 2 | . 2 2 2 Hottest 91 | . 70 80 91 Shots Fired 229 | . 88 52 89 Gun 199 | . 86 47 66 Cannon 7 | . . . 7 Launcher 23 | . 2 5 16 Special . | . . . . Kinetic 156 | . 44 46 66 Thermal 46 | . 38 1 7 Explosive 23 | . 2 5 16 Electromagnetic 4 | . 4 . . Robot Hit Streak 16 | . 8 11 16 Robot Miss Streak 4 | . 4 3 2 Penetration Max . | . . . . Secondary Targets 1 | . . . 1 Max Gunslinging Chain 1 | . . . 1 Shots Hit Robots 176 | . 61 47 68 Core Hits 103 | . 25 32 46 Critical Kills 2 | . . 1 1 Critical Parts Destroyed 1 | . . 1 . Critical Strikes 5 | . 1 3 1 Burn 2 | . 1 1 . Destroy 1 | . . . 1 Smash 2 | . . 2 . Melee Attacks 38 | . . 18 20 Impact 38 | . . 18 20 Slashing . | . . . . Piercing . | . . . . Sneak Attacks 1 | . . 1 . Combat Hostiles . | . . . . Follow-up Attacks . | . . . . Damage Inflicted 3465 | . 740 1027 1698 Guns 1880 | . 584 525 771 Cannons 104 | . . . 104 Explosions 1141 | . 154 277 710 Melee 338 | . . 225 113 Ramming 2 | . 2 . . Kinetic 1505 | . 222 512 771 Thermal 466 | . 349 13 104 Explosive 1141 | . 154 277 710 Electromagnetic 13 | . 13 . . Impact 338 | . . 225 113 Slashing . | . . . . Piercing . | . . . . Highest Corruption . | . . . . Average Corruption . | . . . . Corruption Purged . | . . . . Corruption Blocked . | . . . . Overload Shots . | . . . . Overflow Damage 32 | . . 32 . Projectiles . | . . . . Explosions . | . . . . Melee 32 | . . 32 . Knockbacks . | . . . . Impact . | . . . . Kinetic . | . . . . Secondary . | . . . . Self-Inflicted Damage 36 | . 16 . 20 Shots 3 | . 2 . 1 Rammed . | . . . . Targets Rammed 1 | . 1 . . Kicked 1 | . 1 . . Crushed . | . . . . Highest Temperature 142 | . 142 9 79 Average Temperature 40 | . 53 4 25 Received Heat Transfer 1065 | . 201 219 645 Siege Activations . | . . . . Robots Corrupted . | . . . . Combat Hostiles . | . . . . Parts Fried 6 | . . 3 3 Impact Corruptions 3 | . . 2 1 Robots Melted . | . . . . Combat Hostiles . | . . . . Parts Melted . | . . . . Heat Transferred 1276 | . 980 111 185 Parts Sabotaged . | . . . . Parts Stolen . | . . . . Parts Stripped . | . . . . Power Chain Reactions . | . . . . Missiles Intercepted . | . . . . Alert | -11 -10 -9 -9 ------- Run | Jun Mat Mat Sto Peak Influence 443 | . 174 443 299 Initial 159 | . . 65 159 Average 160 | . 61 294 183 Maximum Alert Level 2 | . . 2 1 Low Security (%) 62 | 100 100 17 51 Level 1 36 | . . 74 48 Level 2 1 | . . 7 . Level 3 . | . . . . Level 4 . | . . . . Level 5 . | . . . . High Security . | . . . . Max Security . | . . . . Squads Dispatched 10 | . 3 3 4 Investigation 5 | . 2 1 2 Extermination . | . . . . Reinforcement 5 | . 1 2 2 Assault . | . . . . Garrison . | . . . . Intercept . | . . . . Searches Triggered . | . . . . Construction Impeded 2 | . . 1 1 Haulers Reinforced . | . . . . Active Scanning Responses . | . . . . Cargo Convoy Interrupts . | . . . . Stealth | -11 -10 -9 -9 --------- Run | Jun Mat Mat Sto Distress Signals 5 | . 2 . 3 Communications Jammed . | . . . . Distress Signals . | . . . . Times Spotted 72 | . 28 18 26 Peak Tracking Total 8 | . 6 6 8 Tactical Retreats 9 | . 4 1 4 Traps | -11 -10 -9 -9 ------- Run | Jun Mat Mat Sto Traps Triggered 3 | . 2 . 1 Indirectly . | . . . . Trap Hack Attempts . | . . . . Triggered . | . . . . Disarmed . | . . . . Reprogrammed . | . . . . Reused . | . . . . Traps Extracted . | . . . . Installed . | . . . . Triggered . | . . . . Machines | -11 -10 -9 -9 ---------- Run | Jun Mat Mat Sto Machines Disabled 2 | . . . 2 Max in Single Turn 1 | . . . 1 Machines Repaired . | . . . . Machines Sabotaged . | . . . . Overloaded Fab Kills . | . . . . Hacking | -11 -10 -9 -9 --------- Run | Jun Mat Mat Sto Machines Accessed 10 | . 5 3 2 Terminals 9 | . 5 2 2 Fabricators . | . . . . Repair Stations . | . . . . Recycling Units . | . . . . Scanalyzers 1 | . . 1 . Garrison Access . | . . . . Total Hacks 26 | . 11 11 4 Successful 18 | . 5 9 4 Failed 8 | . 6 2 . Catastrophic 3 | . 3 . . Database Lockouts . | . . . . Manual 8 | . 3 . 5 Terminals 18 | . 11 3 4 Fabricators . | . . . . Repair Stations . | . . . . Recycling Units . | . . . . Scanalyzers 8 | . . 8 . Garrison Access . | . . . . Terminal Hacks 11 | . 5 2 4 Record 5 | . 3 . 2 Open Door 1 | . . . 1 Alert Level 1 | . . 1 . Transport Status 2 | . 1 1 . Investigation Status 1 | . . . 1 Registered Components 1 | . 1 . . Fabricator Hacks . | . . . . Repair Station Hacks . | . . . . Recycling Unit Hacks . | . . . . Scanalyzer 7 | . . 7 . Insert Component 4 | . . 4 . Analyze 3 | . . 3 . Garrison Access Hacks . | . . . . Unauthorized Hacks . | . . . . Terminals . | . . . . Fabricators . | . . . . Repair Stations . | . . . . Recycling Units . | . . . . Scanalyzers . | . . . . Garrison Access . | . . . . Data Cores Recovered . | . . . . Used . | . . . . Hacking Detections 8 | . 5 2 1 Full Trace Events 2 | . . 1 1 Feedback Events . | . . . . Feedback Blocked . | . . . . Robot Schematics Acquired . | . . . . Robots Built . | . . . . Authchips . | . . . . Time . | . . . . Total Robot Build Rating . | . . . . Part Schematics Acquired 3 | . . 3 . Parts Built . | . . . . Authchips . | . . . . Time . | . . . . Total Part Build Rating . | . . . . Parts Repaired . | . . . . Time . | . . . . Parts Recycled . | . . . . Recycled Matter . | . . . . Retrieved Matter . | . . . . Retrieved Components . | . . . . Parts Scanalyzed 3 | . . 3 . Part Schematics Acquired 3 | . . 3 . Parts Damaged 1 | . . 1 . Bothacking | -11 -10 -9 -9 ------------ Run | Jun Mat Mat Sto Used RIF Installer . | . . . . Robots Hacked . | . . . . Non-combat . | . . . . Combat . | . . . . Robot Hacks Applied . | . . . . Relay Couplers Released . | . . . . Fabnet Peak Effective % . | . . . . Robots Rewired . | . . . . Allies Hacked . | . . . . Hacks Repelled . | . . . . Allies | -11 -10 -9 -9 -------- Run | Jun Mat Mat Sto Total Allies . | . . . . Largest Group . | . . . . Highest-Rated Group . | . . . . Highest-Rated Ally . | . . . . Total Orders . | . . . . Ally Attacks . | . . . . Total Damage . | . . . . Kills . | . . . . Allies Corrupted . | . . . . Allies Melted . | . . . . Intel | -11 -10 -9 -9 ------- Run | Jun Mat Mat Sto Robot Analysis Total . | . . . . Derelict Logs Recovered . | . . . . Drone Launches . | . . . . Drone Recoveries . | . . . . Exploration | -11 -10 -9 -9 ------------- Run | Jun Mat Mat Sto Turns Passed 3264 | 70 1138 705 1351 Spaces Moved 1449 | 44 544 298 563 Core 15 | 15 . . . Treads . | . . . . Legs 1434 | 29 544 298 563 Wheels . | . . . . Hover . | . . . . Flight . | . . . . Fastest Speed 50 | 50 120 120 120 Average Speed 166 | 132 167 173 165 Slowest Speed 260 | 200 190 190 260 Overloaded Moves . | . . . . Propulsion Burnouts . | . . . . Robots Hopped . | . . . . Cave-ins Triggered . | . . . . Exploration Rate (%) 44 | 4 82 32 58 Regions Visited 3 Branch Regions 1 Pre-discovered Areas . | . . . . Known Exits Taken 2 | . 1 1 . Unknown Exits Taken 1 | 1 . . . Scrap Searched . | . . . . Spaces Dug 18 | . . 4 14 Terrain Destroyed 105 | . 15 31 59 Melee 11 | . . 4 7 Projectile . | . . . . AOE 94 | . 15 27 52 Terrain Rammed . | . . . . Walls Destroyed . | . . . . Machines Disabled . | . . . . Actions | -11 -10 -9 -9 --------- Run | Jun Mat Mat Sto Total 1994 | 53 688 404 849 Wait 232 | . 64 26 142 Move 1446 | 43 543 297 563 Hop . | . . . . Pick Up 39 | 4 13 10 12 Fast Attach 8 | 4 1 . 3 Attach 20 | 2 2 3 13 Detach 6 | . 2 . 4 Swap 59 | . 13 13 33 Drop 29 | . 4 11 14 Fire 116 | . 45 26 45 Melee 38 | . . 18 20 Ram . | . . . . Kick 1 | . 1 . . Crush . | . . . . Escape Stasis . | . . . . Rewire . | . . . . Trap . | . . . . Miscellaneous . | . . . . Route ------- -11/Junkyard -10/Materials (discovered 3 exits: *Mat x3) -9/Materials (discovered 3 exits: *Mat / *Sto x2) -9/Storage History --------- Turn | Location | Event 23 | -11/Junkyard | Discovered new exit (range 14) 71 | -11/Junkyard | Entered Materials 335 | -10/Materials | Build established: Mutant 357 | -10/Materials | Discovered new exit (range 8) 432 | -10/Materials | Discovered new exit (range 15) 813 | -10/Materials | Identified exit to Materials 1162 | -10/Materials | Discovered exit to Materials (range 16) 1209 | -10/Materials | Entered another Materials area 1209 | -9/Materials | Evolved 2 slots: Propulsion x1, Utility x1 1228 | -9/Materials | Discovered new exit (range 16) 1343 | -9/Materials | Identified exit to Storage 1496 | -9/Materials | Build established: Scavenger-Mutant 1709 | -9/Materials | Discovered new exit (range 9) 1722 | -9/Materials | Identified exit to Materials 1893 | -9/Materials | Discovered exit to Storage (range 8) 1914 | -9/Materials | Entered Storage 2873 | -9/Storage | Found Prototype Protection 2874 | -9/Storage | Identified Lgt. Regenerative Plating 3059 | -9/Storage | Core integrity fell below 50% 3106 | -9/Storage | Core integrity fell below 20% 3150 | -9/Storage | Lost 7 parts (1p4n2w) 3265 | -9/Storage | Destroyed by Y-45 Defender with Heavy Assault Rifle Last Messages --------------- 03185_ R-06 Scavenger collects Lgt. Ion Engine. 03187_ K-01 Serf collects debris. 03196_ R-06 Scavenger collects Lgt. Treads. 03196_ G-34 Mercenary destroyed. 03196_ K-01 Serf collects debris. 03200_ R-06 Scavenger collects Imp. Assault Rifle. 03200_ K-01 Serf collects debris. 03205_ Acquired Aluminum Leg. 03206_ Acquired 32 matter. 03208_ Acquired 8 matter. 03208_ K-01 Serf collects debris. 03211_ Acquired Imp. Assault Rifle. 03212_ K-01 Serf collects debris. 03213_ Acquired Imp. Assault Rifle. 03215_ K-01 Serf collects debris. 03218_ Acquired 32 matter. 03220_ Acquired Ion Engine. 03227_ R-06 Scavenger collects Heat Sink. 03234_ R-06 Scavenger collects Aluminum Leg. 03263_ Y-45 Defender destroyed. Map ----- +----------------------------------------------------+ | ?????????????????????????????????????? | | ?????????????????????????????????????? | | ?????????????????????????????????????? | | ?????????????????????????????????????? | | ??????????????????? ???????????????? | | ??????????????????# ???????????????? | | ??????????????????# ???????????????? | | ??????????????????# ???????????????? | | ??????????????????# ???????????????? | | ??????????????????# #??????????????? | | ??????????????????# #??????????????? | | ??????????????##### +??????????????? | | ??????????????# #??????????????? | | ??????????????# #??????????????? | | ??????????????+ #??????????????? | | ??????????????# ^ #??????????????? | | ??????????????+ ^ ^ #??????????????? | | ??????????????# #??????????????? | | ??????????????# #??????????????? | | ??????????????# #??????????????? | | ??????????????# #??????????????? | | ??????????????# rY #??????????????? | | ??????????????#g ##?????????????? | | ??????????#####!a ##?????????????? | | ?????????## %;= ! = # ?????????????? | | ?????????#T @# [% ##?????????????? | | ?????????##"### [= ##?????????????? | | ??????????????# ###????????????? | | ??????????????# # #????????????? | | ????#####?????# # ?????????????? | | ????#"""#?????# #?????????? ???? | | ?####"Y"###?### #??????????????? | | ?# #???# #??????????????? | | ?# #???# #??????????????? | | ?# #???# = #??????????????? | | ?# #???# ##?????????????? | | ?# #???# ##########?????? | | ## ]]]##??# # ^ #?????? | | #T ]] #???# # """ #?????? | | ?# ]] ##??# # "T" #?????? | | ?# #??# # ^ #?????? | | ???###+######## + #?????? | | ????# = # """ #?????? | | ????# ! # """ #?????? | | ????# + """ #????? | | ????# #####+##### # ##????? | | ????# ## ## ####"T"###????## | | ????# ## ## ###?####??????# | | ????# ## % ## #T###???#?????# | | ????# ## [[ ## + #?????????# | +----------------------------------------------------+ Best States ------------- Heat Dissipation 35 Energy Generation 12 Energy Capacity 265 Matter Stores 300 Matter Capacity 300 Sight Range 16 Robot Scan Range 14 Terrain Scan Range 14 Terrain Scan Density 10 Armor Coverage 150 Evasion (%) 55 Item Schematics ----------------- Aluminum Leg | -9/Materials | Scanalyzed Med. Storage Unit | -9/Materials | Scanalyzed Seismic Detector | -9/Materials | Scanalyzed Robot Schematics ------------------ None Fabricated ------------ Nothing Alien Tech Used ----------------- None Achievements -------------- None Challenges ------------ None Game ------ Seed SpacefoldVariableSystem Manual? 0 Play Time 00:57:31 Cumulative 12.9 hours Start 2024.02.03 @ 15:46:31 End 2024.02.03 @ 17:24:45 Sessions 1 Manual Loads 0 Difficulty Rogue Special Mode None Game No. 10 Rogue 5 Adventurer 5 Explorer 0 Win Type - Total 0 Types 0/0/0/0/0/0/0/0/0 Lore% 5 Gallery% 24 Achievement% 19 Wizard Run 0 Options --------- ASCII 0 Keyboard 1 Movement Vi Keybinds 0 Fullscreen 1 Font 24/Smallcaps Map View 76x50 Tactical HUD 1 Map Filters NONE Filters NONE Steam 1 RUN: d50e1c5b-3af4-42fe-99b3-93816c241221